bitfinex/quotes_BTCUSD_20250904
["timestamp","ask_amount","ask_price","bid_price","bid_amount"]
[1756974798902,2.22112399,110920.0,110910.0,0.0010848]
[1756974799098,2.22418399,110920.0,110910.0,0.0010848]
[1756974799909,3.49077685,110920.0,110910.0,0.0010848]
[1756974800391,3.49077685,110920.0,110910.0,8.48e-05]
[1756974802895,3.49177685,110920.0,110910.0,8.48e-05]
[1756974803279,3.49077685,110920.0,110910.0,8.48e-05]
[1756974804154,3.49177685,110920.0,110910.0,8.48e-05]
[1756974807182,3.51271567,110920.0,110910.0,8.48e-05]
[1756974808144,3.58364442,110920.0,110910.0,8.48e-05]
[1756974808352,1.80785807,110910.0,110900.0,1e-08]
[1756974808485,2.29567668,110910.0,110900.0,8.482e-05]
[1756974808690,2.32178543,110910.0,110900.0,8.482e-05]
[1756974809264,2.34890235,110910.0,110900.0,8.482e-05]
[1756974809472,2.34890235,110910.0,110900.0,0.00108482]
[1756974810238,2.34890235,110910.0,110900.0,8.482e-05]
[1756974810439,2.39890235,110910.0,110900.0,8.482e-05]
[1756974810806,2.39990235,110910.0,110900.0,8.482e-05]
[1756974811923,0.52035891,110890.0,110880.0,0.00294]
[1756974812132,1.58591415,110890.0,110880.0,0.00294]
[1756974812369,1.58591415,110890.0,110880.0,0.00499]
[1756974812576,1.61303192,110890.0,110880.0,0.00499]
[1756974813173,1.61303192,110890.0,110880.0,0.00599]
[1756974813609,1.61303192,110890.0,110880.0,0.00799]
[1756974815304,2.12714553,110890.0,110880.0,0.00799]
[1756974815526,2.22118152,110890.0,110880.0,0.00505]
[1756974815815,2.22118152,110890.0,110880.0,0.003]
[1756974816031,2.22118152,110890.0,110880.0,0.00505]
[1756974816249,2.22118152,110890.0,110880.0,0.00799]
[1756974817058,2.26229446,110890.0,110880.0,0.00799]
[1756974818132,0.52040772,110860.0,110850.0,0.07394631]
[1756974818324,1.51660296,110860.0,110850.0,0.1658623]
[1756974818511,1.51660296,110860.0,110850.0,0.1916923]
[1756974818858,1.54372237,110860.0,110850.0,0.1916923]
[1756974819120,1.54372237,110860.0,110850.0,0.11814599]
[1756974819328,1.54372237,110860.0,110850.0,0.12161604]
[1756974819735,1.39192237,110860.0,110850.0,0.12761604]
[1756974820058,1.54372237,110860.0,110850.0,0.12761604]
[1756974820217,1.54372237,110860.0,110850.0,0.03895005]
[1756974820969,1.39192237,110860.0,110850.0,0.03895005]
[1756974821116,1.54372237,110860.0,110850.0,0.03895005]
[1756974821530,1.54372237,110860.0,110850.0,0.01517005]
[1756974821932,1.55282499,110860.0,110850.0,0.01517005]
[1756974822705,1.55282499,110860.0,110850.0,0.00617005]
[1756974822938,1.55282499,110860.0,110850.0,0.01117005]
[1756974823117,1.55278499,110860.0,110850.0,0.01117005]
[1756974823339,1.55278499,110860.0,110850.0,0.00617005]
[1756974823532,1.55278499,110860.0,110850.0,0.00717005]
[1756974823754,1.55278499,110860.0,110850.0,0.00817005]
[1756974826234,1.40102499,110860.0,110850.0,0.00817005]
[1756974826447,0.70838975,110860.0,110850.0,0.00817005]
[1756974826658,1.55278499,110860.0,110850.0,0.00817005]
[1756974827781,1.40102499,110860.0,110850.0,0.00817005]
[1756974828080,1.55278499,110860.0,110850.0,0.00817005]
[1756974831862,0.70838975,110860.0,110850.0,0.52228366]
[1756974832079,1.13058737,110860.0,110850.0,0.10008604]
[1756974832525,1.55278499,110860.0,110850.0,0.09683604]
[1756974832740,1.55278499,110860.0,110850.0,0.10008604]
[1756974833426,1.13058737,110860.0,110850.0,0.10008604]
[1756974834179,0.70838975,110860.0,110850.0,0.10008604]
[1756974834375,1.13058737,110860.0,110850.0,0.10008604]
[1756974835228,0.70838975,110860.0,110850.0,0.10008604]
[1756974835448,1.13058737,110860.0,110850.0,0.10008604]
[1756974839346,0.70838975,110860.0,110850.0,0.10008604]
[1756974840464,1.13058737,110860.0,110850.0,0.10008604]
[1756974840850,0.70838975,110860.0,110850.0,0.10008604]
[1756974841063,1.13058737,110860.0,110850.0,0.10008604]
[1756974841503,0.70838975,110860.0,110850.0,0.10008604]
[1756974843072,0.70838975,110860.0,110850.0,0.09683604]
[1756974843466,0.70838975,110860.0,110850.0,0.09909133]
[1756974843823,0.55662975,110860.0,110850.0,0.10234133]
[1756974844208,0.70834975,110860.0,110850.0,0.10234133]
[1756974844964,0.70834975,110860.0,110850.0,0.09909133]
[1756974845173,0.71350975,110860.0,110850.0,0.09683604]
[1756974846343,0.71350975,110860.0,110850.0,0.00287005]
[1756974846898,1.27673203,110860.0,110850.0,0.00287005]
[1756974847330,1.27673203,110860.0,110850.0,0.00187005]
[1756974847566,1.27673203,110860.0,110850.0,0.00087005]
[1756974847770,1.27673203,110860.0,110850.0,0.00187005]
[1756974847981,1.27673203,110860.0,110850.0,0.00087005]
[1756974848194,1.28307737,110860.0,110850.0,1e-08]
[1756974848402,1.28307737,110860.0,110850.0,0.00100001]
[1756974849993,1.13135737,110860.0,110850.0,0.00100001]
[1756974850214,1.28307737,110860.0,110850.0,0.00100001]
[1756974851342,1.13135327,110860.0,110850.0,0.00100001]
[1756974851575,1.28307327,110860.0,110850.0,0.00100001]
[1756974852199,1.34152,110860.0,110850.0,0.00100001]
[1756974853158,1.28307327,110860.0,110850.0,1e-08]
[1756974856066,1.28303327,110860.0,110850.0,1e-08]
[1756974856488,1.28302806,110860.0,110850.0,1e-08]
[1756974857537,1.13134806,110860.0,110850.0,1e-08]
[1756974857733,1.28302806,110860.0,110850.0,1e-08]
[1756974857914,1.37494405,110860.0,110850.0,1e-08]
[1756974859060,1.37494192,110860.0,110850.0,1e-08]
[1756974860492,1.13134593,110860.0,110850.0,1e-08]
[1756974860811,1.28302593,110860.0,110850.0,1e-08]
[1756974863864,1.13134593,110860.0,110850.0,1e-08]
[1756974864061,1.28302593,110860.0,110850.0,0.00217001]
[1756974864509,1.28302593,110860.0,110850.0,1e-08]
[1756974865296,1.27669203,110860.0,110850.0,1e-08]
[1756974865720,1.12501203,110860.0,110850.0,1e-08]
[1756974865910,1.36860802,110860.0,110850.0,1e-08]
[1756974866912,1.27669203,110860.0,110850.0,1e-08]
[1756974869495,0.56178975,110860.0,110850.0,1e-08]
[1756974869648,1.27665203,110860.0,110850.0,1e-08]
[1756974875249,1.28299312,110860.0,110850.0,1e-08]
[1756974876236,1.13135312,110860.0,110850.0,1e-08]
[1756974876500,1.13135312,110860.0,110850.0,0.00217001]
[1756974876698,1.28299312,110860.0,110850.0,0.00217001]
[1756974877413,0.22297084,110860.0,110850.0,0.00513001]
[1756974877588,0.93149203,110860.0,110850.0,0.00513001]
[1756974878058,0.70826975,110860.0,110850.0,0.00513001]
[1756974878275,0.21662975,110860.0,110850.0,0.00513001]
[1756974878480,0.36826975,110860.0,110850.0,0.097046]
[1756974878659,0.70826975,110860.0,110850.0,0.097046]
[1756974879059,0.55662975,110860.0,110850.0,0.27746999]
[1756974879266,0.03622203,110860.0,110850.0,0.27746999]
[1756974879477,0.02711941,110860.0,110850.0,0.27746999]
[1756974879679,0.36711941,110860.0,110850.0,0.27746999]
[1756974880107,0.03630012,110860.0,110850.0,0.84069227]
[1756974880309,0.03630012,110860.0,110850.0,0.86524227]
[1756974881103,0.02711941,110860.0,110850.0,0.86524227]
[1756974881325,0.34,110870.0,110860.0,0.18040772]
[1756974881675,0.36711618,110870.0,110860.0,0.27538371]
[1756974882181,0.36711618,110870.0,110860.0,0.27753371]
[1756974882712,0.37632315,110870.0,110860.0,0.27753371]
[1756974882933,0.03632315,110870.0,110860.0,0.84075599]
[1756974883146,0.01020697,110870.0,110860.0,0.84075599]
[1756974883548,0.001,110870.0,110860.0,0.84075599]
[1756974885426,0.002,110870.0,110860.0,0.93105481]
[1756974885635,0.002,110870.0,110860.0,0.95560481]
[1756974886103,0.001,110870.0,110860.0,0.95560481]
[1756974886547,0.001,110870.0,110860.0,0.39438253]
[1756974886796,0.56541434,110890.0,110880.0,0.18037518]
[1756974887011,0.57043434,110890.0,110880.0,0.27444117]
[1756974889226,0.37804722,110890.0,110880.0,0.27644117]
[1756974889435,0.37603722,110890.0,110880.0,0.27744117]
[1756974889732,0.37603722,110890.0,110880.0,0.28050117]
[1756974891361,0.36711143,110890.0,110880.0,0.28050117]
[1756974892509,0.34,110910.0,110900.0,0.18033177]
[1756974892708,0.49152,110910.0,110900.0,0.27439776]
[1756974892918,0.51862744,110910.0,110900.0,0.27439776]
[1756974893134,0.52063744,110910.0,110900.0,0.27439776]
[1756974893349,0.52951911,110910.0,110900.0,0.27439776]
[1756974893679,0.52998916,110910.0,110900.0,0.27439776]
[1756974894593,0.52797916,110910.0,110900.0,0.27439776]
[1756974894794,0.52797916,110910.0,110900.0,0.27745776]
[1756974894967,0.37845916,110910.0,110900.0,0.42591776]
[1756974895367,0.38046916,110910.0,110900.0,0.42591776]
[1756974896252,0.37845916,110910.0,110900.0,0.42897776]
[1756974896888,0.37845916,110910.0,110900.0,0.27745776]
[1756974897116,0.37845916,110910.0,110900.0,0.42893776]
[1756974899424,0.37845916,110910.0,110900.0,0.42587776]
[1756974899736,0.38046916,110910.0,110900.0,0.42587776]
[1756974899958,0.38347916,110910.0,110900.0,0.42587776]
[1756974900161,0.38347916,110910.0,110900.0,0.42372776]
[1756974900776,0.38347916,110910.0,110900.0,0.42587776]
[1756974902521,0.56380555,110910.0,110900.0,0.27224776]
[1756974902721,0.56380555,110910.0,110900.0,0.42368776]
[1756974902923,0.56380555,110910.0,110900.0,0.09191599]
[1756974903304,1.12702783,110910.0,110900.0,0.09191599]
[1756974903511,0.18034265,110900.0,110890.0,0.3407943]
[1756974903714,0.60249191,110900.0,110890.0,0.43271029]
[1756974903917,1.52110117,110900.0,110890.0,0.09191599]
[1756974904109,1.54821069,110900.0,110890.0,0.09191599]
[1756974904367,1.54821069,110900.0,110890.0,0.2722749]
[1756974905114,1.12606143,110900.0,110890.0,0.2732749]
[1756974905315,1.54821069,110900.0,110890.0,0.2732749]
[1756974906033,1.39677069,110900.0,110890.0,0.2732749]
[1756974906441,0.97462143,110900.0,110890.0,0.2732749]
[1756974906643,0.79427878,110900.0,110890.0,0.2732749]
[1756974906883,0.97462143,110900.0,110890.0,0.2732749]
[1756974908996,0.97462143,110900.0,110890.0,0.09291599]
[1756974909155,0.97462143,110900.0,110890.0,0.24435599]
[1756974909892,1.39677069,110900.0,110890.0,0.001]
[1756974910095,1.40309453,110900.0,110890.0,0.001]
[1756974913738,1.55453453,110900.0,110890.0,0.001]
[1756974918819,1.40309453,110900.0,110890.0,0.001]
[1756974919043,1.55449453,110900.0,110890.0,0.001]
[1756974920235,0.71019601,110900.0,110890.0,0.001]
[1756974920478,1.55449453,110900.0,110890.0,0.001]
[1756974921852,1.40309453,110900.0,110890.0,0.001]
[1756974922070,1.55449453,110900.0,110890.0,0.001]
[1756974926781,0.55879601,110900.0,110890.0,0.001]
[1756974927016,0.96960143,110900.0,110890.0,0.00302]
[1756974927245,0.36710952,110900.0,110890.0,0.85181416]
[1756974927659,0.02710952,110900.0,110890.0,0.85181416]
[1756974927882,0.02710952,110900.0,110890.0,0.92113416]
[1756974928070,0.00935172,110910.0,110900.0,0.18034265]
[1756974928362,0.03645741,110910.0,110900.0,0.6973779]
[1756974928614,0.03645741,110910.0,110900.0,0.6993979]
[1756974929373,0.03745741,110910.0,110900.0,0.6993979]
[1756974929598,0.03845741,110910.0,110900.0,0.6993979]
[1756974929798,0.03845741,110910.0,110900.0,0.27724864]
[1756974930003,0.03845741,110910.0,110900.0,0.6993979]
[1756974930814,0.03845741,110910.0,110900.0,0.42860864]
[1756974931010,0.03845741,110910.0,110900.0,0.42563864]
[1756974931669,0.03845741,110910.0,110900.0,0.27427864]
[1756974931869,0.04377741,110910.0,110900.0,0.42563864]
[1756974932306,0.03845741,110910.0,110900.0,0.42563864]
[1756974932477,0.03845741,110910.0,110900.0,0.42860864]
[1756974934490,0.03845741,110910.0,110900.0,0.42563864]
[1756974936445,0.03845741,110910.0,110900.0,0.8507579]
[1756974937458,0.02500741,110910.0,110900.0,0.8507579]
[1756974938089,0.03411295,110910.0,110900.0,0.8507579]
[1756974938868,0.03411295,110910.0,110900.0,0.8477879]
[1756974942671,0.03411295,110910.0,110900.0,0.42563864]
[1756974942846,0.03411295,110910.0,110900.0,0.8477879]
[1756974944128,0.21443934,110910.0,110900.0,0.27427864]
[1756974944333,0.03411295,110910.0,110900.0,0.42559864]
[1756974944544,0.46154221,110910.0,110900.0,0.42559864]
[1756974944969,0.03939295,110910.0,110900.0,0.42559864]
[1756974946752,0.03624295,110910.0,110900.0,0.42559864]
[1756974946964,0.03411295,110910.0,110900.0,0.42559864]
[1756974947129,0.03411295,110910.0,110900.0,0.8477479]
[1756974947505,0.03411295,110910.0,110900.0,0.8507679]
[1756974949467,0.01110554,110910.0,110900.0,0.8507679]
[1756974951534,0.01110554,110910.0,110900.0,1.27291716]
[1756974951757,0.002,110910.0,110900.0,1.27291716]
[1756974952658,0.3763432,110920.0,110910.0,0.18032639]
[1756974952808,0.37639016,110920.0,110910.0,0.69641164]
[1756974953163,0.36715266,110920.0,110910.0,0.69641164]
[1756974953523,0.34004696,110920.0,110910.0,0.69641164]
[1756974954976,0.34004696,110920.0,110910.0,0.69941164]
[1756974955196,0.34217696,110920.0,110910.0,0.70141164]
[1756974955435,0.34532696,110920.0,110910.0,0.43054238]
[1756974955663,0.34532696,110920.0,110910.0,0.42852238]
[1756974956078,0.34532696,110920.0,110910.0,0.43054238]
[1756974956439,0.3511694,110920.0,110910.0,0.43054238]
[1756974957107,0.34217696,110920.0,110910.0,0.85269164]
[1756974957738,0.34217696,110920.0,110910.0,0.70141164]
[1756974957959,0.34217696,110920.0,110910.0,0.85269164]
[1756974958361,0.34532696,110920.0,110910.0,0.85269164]
[1756974958763,0.34532696,110920.0,110910.0,0.27926238]
[1756974958988,0.35427237,110920.0,110910.0,0.85269164]
[1756974959195,0.35427237,110920.0,110910.0,0.43054238]
[1756974960452,0.34899237,110920.0,110910.0,0.85571164]
[1756974960845,0.34899237,110920.0,110910.0,0.85269164]
[1756974962267,0.34899237,110920.0,110910.0,0.27926238]
[1756974962479,0.34899237,110920.0,110910.0,0.85269164]
[1756974964260,0.34899237,110920.0,110910.0,0.70141164]
[1756974964474,0.34899237,110920.0,110910.0,0.85269164]
[1756974964888,0.35112237,110920.0,110910.0,0.85269164]
[1756974965284,0.35427237,110920.0,110910.0,0.27926238]
[1756974965488,0.35427237,110920.0,110910.0,0.43054238]
[1756974965686,0.35427237,110920.0,110910.0,0.27926238]
[1756974965931,0.35427237,110920.0,110910.0,0.42852238]
[1756974966293,0.35427237,110920.0,110910.0,0.27724238]
[1756974966501,0.5345825,110920.0,110910.0,0.42852238]
[1756974966688,0.35427237,110920.0,110910.0,0.42852238]
[1756974969916,0.35427237,110920.0,110910.0,0.99628672]
[1756974969917,0.34899237,110920.0,110910.0,0.99628672]
[1756974970701,0.34899237,110920.0,110910.0,0.43371238]
[1756974971178,0.00899237,110920.0,110910.0,0.43371238]
[1756974971394,4.696e-05,110920.0,110910.0,0.99628672]
[1756974973753,4.696e-05,110920.0,110910.0,1.04164554]
[1756974973972,4.696e-05,110920.0,110910.0,1.04160554]
[1756974974351,4.696e-05,110920.0,110910.0,0.89036554]
[1756974974524,4.696e-05,110920.0,110910.0,1.04160554]
[1756974975543,4.696e-05,110920.0,110910.0,1.0687024]
[1756974976397,4.696e-05,110920.0,110910.0,0.9174624]
[1756974976571,4.696e-05,110920.0,110910.0,1.0442824]
[1756974976977,4.696e-05,110920.0,110910.0,0.48170806]
[1756974977183,4.696e-05,110920.0,110910.0,1.0442824]
[1756974978882,4.696e-05,110920.0,110910.0,1.0411924]
[1756974979750,4.696e-05,110920.0,110910.0,1.0442824]
[1756974981542,4.696e-05,110920.0,110910.0,0.32737806]
[1756974981724,0.00519696,110920.0,110910.0,0.4514812]
[1756974982087,0.00220696,110920.0,110910.0,0.3002812]
[1756974982227,4.696e-05,110920.0,110910.0,0.4514812]
[1756974983043,0.00519696,110920.0,110910.0,1.01405554]
[1756974983831,0.00220696,110920.0,110910.0,1.01405554]
[1756974984358,4.696e-05,110920.0,110910.0,1.01405554]
[1756974986128,4.696e-05,110920.0,110910.0,0.4545712]
[1756974995185,4.696e-05,110920.0,110910.0,0.49556298]
[1756975001802,4.696e-05,110920.0,110910.0,0.49247298]
[1756975004750,4.696e-05,110920.0,110910.0,0.4514812]
[1756975005169,4.696e-05,110920.0,110910.0,0.5208012]
[1756975005956,0.5678513,110920.0,110910.0,0.34656238]
[1756975006383,0.9078513,110920.0,110910.0,0.34656238]
[1756975006592,1.08816143,110920.0,110910.0,0.31739599]
[1756975007299,1.11526593,110920.0,110910.0,0.49772238]
[1756975007464,1.11526593,110920.0,110910.0,0.42840238]
[1756975007465,0.9349558,110920.0,110910.0,0.42840238]
[1756975009442,0.9078513,110920.0,110910.0,0.42840238]
[1756975009642,1.08816143,110920.0,110910.0,0.42840238]
[1756975012244,1.08816143,110920.0,110910.0,0.09691599]
[1756975012469,1.65073577,110920.0,110910.0,0.005]
[1756975013088,1.08816143,110920.0,110910.0,0.005]
[1756975013302,1.08816143,110920.0,110910.0,0.003]
[1756975013659,0.18032639,110910.0,110890.0,0.25869685]
[1756975013959,0.52032639,110910.0,110900.0,0.42341864]
[1756975014218,0.52232639,110910.0,110900.0,0.42341864]
[1756975014636,0.52555639,110910.0,110900.0,0.42341864]
[1756975014781,0.52555639,110910.0,110900.0,0.24307599]
[1756975015137,1.08813073,110910.0,110900.0,0.24307599]
[1756975016268,1.08813073,110910.0,110900.0,0.42341864]
[1756975016481,1.08813073,110910.0,110900.0,0.42641864]
[1756975016696,1.08813073,110910.0,110900.0,0.42841864]
[1756975019462,1.08813073,110910.0,110900.0,0.27725864]
[1756975019668,1.08813073,110910.0,110900.0,0.09691599]
[1756975019870,1.08813073,110910.0,110900.0,0.24807599]
[1756975020047,1.11523831,110910.0,110900.0,0.24807599]
[1756975021795,1.11523831,110910.0,110900.0,0.15616]
[1756975022140,1.11523831,110910.0,110900.0,0.005]
[1756975024342,1.11523831,110910.0,110900.0,0.003]
[1756975024739,1.11523831,110910.0,110900.0,0.004]
[1756975025292,1.11523831,110910.0,110900.0,0.001]
[1756975025503,1.39719819,110910.0,110900.0,0.001]
[1756975025705,1.39719819,110910.0,110900.0,0.003]
[1756975026004,1.39719819,110910.0,110900.0,0.002]
[1756975026204,0.52035891,110890.0,110880.0,0.33153465]
[1756975026563,0.94785602,110890.0,110880.0,0.42345064]
[1756975026903,0.94785602,110890.0,110880.0,0.24307599]
[1756975027513,0.94785602,110890.0,110880.0,0.42545117]
[1756975027720,0.94785602,110890.0,110880.0,0.24507599]
[1756975027916,0.94785602,110890.0,110880.0,0.09391599]
[1756975028125,0.94785602,110890.0,110880.0,0.24507599]
[1756975028348,0.97496764,110890.0,110880.0,0.24507599]
[1756975029045,0.97496764,110890.0,110880.0,0.09691599]
[1756975029268,1.39723475,110890.0,110880.0,0.005]
[1756975030290,1.39723475,110890.0,110870.0,0.15116]
[1756975030291,0.52037518,110880.0,110870.0,0.15116]
[1756975030534,1.3680494,110880.0,110870.0,0.42346743]
[1756975030697,1.3702094,110880.0,110870.0,0.24307599]
[1756975031116,1.37943835,110880.0,110870.0,0.24307599]
[1756975031445,1.37948528,110880.0,110870.0,0.24307599]
[1756975032692,1.37948528,110880.0,110870.0,0.24607599]
[1756975032970,1.37948528,110880.0,110870.0,0.09491599]
[1756975033087,1.37948528,110880.0,110870.0,0.24607599]
[1756975033448,1.37948528,110880.0,110870.0,0.24807599]
[1756975033869,1.40659975,110880.0,110870.0,0.24807599]
[1756975034986,1.40659975,110880.0,110870.0,0.09691599]
[1756975035194,1.55775975,110880.0,110870.0,0.27730743]
[1756975036669,0.71322553,110880.0,110870.0,0.27730743]
[1756975036920,1.22622457,110880.0,110870.0,0.27730743]
[1756975037116,0.79865746,110880.0,110870.0,0.28233743]
[1756975037516,0.79865746,110880.0,110870.0,0.27930743]
[1756975037713,1.22092457,110880.0,110870.0,0.27930743]
[1756975038064,1.22308457,110880.0,110870.0,0.27930743]
[1756975038443,1.40345975,110880.0,110870.0,0.27930743]
[1756975038816,1.22308457,110880.0,110870.0,0.27930743]
[1756975039545,1.40345975,110880.0,110870.0,0.27930743]
[1756975039708,1.40659975,110880.0,110870.0,0.27930743]
[1756975042241,0.34927588,110880.0,110870.0,0.28233743]
[1756975043016,0.77154299,110880.0,110870.0,0.28233743]
[1756975043192,0.76231404,110880.0,110870.0,0.28233743]
[1756975043340,0.7713717,110880.0,110870.0,0.28233743]
[1756975045808,0.34910459,110880.0,110870.0,0.28233743]
[1756975046012,0.7713717,110880.0,110870.0,0.28233743]
[1756975046196,0.76231404,110880.0,110870.0,0.28233743]
[1756975048679,1.37946059,110880.0,110870.0,0.09691599]
[1756975048825,1.37946059,110880.0,110870.0,0.24803599]
[1756975049171,1.40657479,110880.0,110870.0,0.24803599]
[1756975049535,1.37946059,110880.0,110870.0,0.24803599]
[1756975050503,1.37946059,110880.0,110870.0,0.42842743]
[1756975054185,0.53492637,110880.0,110870.0,0.42842743]
[1756975054516,1.37946059,110880.0,110870.0,0.42842743]
[1756975055296,0.76231404,110880.0,110870.0,0.43042743]
[1756975055571,0.34004693,110880.0,110870.0,0.43345743]
[1756975055767,0.76231404,110880.0,110870.0,0.43345743]
[1756975055977,0.34004693,110880.0,110870.0,0.43345743]
[1756975056145,0.76231404,110880.0,110870.0,0.43345743]
[1756975057048,4.693e-05,110880.0,110870.0,0.43345743]
[1756975057461,0.42231404,110880.0,110870.0,0.43345743]
[1756975058550,4.693e-05,110880.0,110870.0,0.43345743]
[1756975059389,0.42231404,110880.0,110870.0,0.43341743]
[1756975064920,0.42231404,110880.0,110870.0,0.28233743]
[1756975065121,0.42231404,110880.0,110870.0,0.43341743]
[1756975065326,4.693e-05,110880.0,110870.0,0.43341743]
[1756975065524,0.42231404,110880.0,110870.0,0.43038743]
[1756975066157,0.84979115,110880.0,110870.0,0.27730743]
[1756975066349,1.03016633,110880.0,110870.0,0.42838743]
[1756975067632,1.03016633,110880.0,110870.0,0.24799599]
[1756975067633,1.37016633,110880.0,110870.0,0.24799599]
[1756975067835,1.52124633,110880.0,110870.0,0.09691599]
[1756975068036,1.37016633,110880.0,110870.0,0.24799599]
[1756975068405,1.39728053,110880.0,110870.0,0.42838743]
[1756975071872,0.37237113,110880.0,110870.0,0.43048743]
[1756975072047,1.21690535,110880.0,110870.0,0.43048743]
[1756975072268,1.39728053,110880.0,110870.0,0.42838743]
[1756975072460,1.39728053,110880.0,110870.0,0.42834743]
[1756975074777,1.39728053,110880.0,110870.0,0.27730743]
[1756975074984,1.39728053,110880.0,110870.0,0.42834743]
[1756975075500,0.55274631,110880.0,110870.0,0.42834743]
[1756975075640,1.39728053,110880.0,110870.0,0.42834743]
[1756975076780,1.21690535,110880.0,110870.0,0.42834743]
[1756975077001,1.21690535,110880.0,110870.0,0.43044743]
[1756975077557,1.39728053,110880.0,110870.0,0.43044743]
[1756975078689,1.39728053,110880.0,110870.0,0.42834743]
[1756975080491,0.37237113,110880.0,110870.0,0.42834743]
[1756975080685,1.21690535,110880.0,110870.0,0.42834743]
[1756975081487,1.39728053,110880.0,110870.0,0.42834743]
[1756975084540,1.21690535,110880.0,110870.0,0.42834743]
[1756975084756,1.39728053,110880.0,110870.0,0.42834743]
[1756975085445,1.97058764,110880.0,110870.0,0.005]
[1756975085996,1.97058764,110880.0,110870.0,0.002]
[1756975086319,0.52039144,110870.0,110860.0,0.151]
[1756975086542,1.36809566,110870.0,110860.0,0.24291599]
[1756975086701,1.37013566,110870.0,110860.0,0.24291599]
[1756975086901,0.55271781,110870.0,110860.0,0.24291599]
[1756975087171,1.39725203,110870.0,110860.0,0.24291599]
[1756975087581,1.11596519,110870.0,110860.0,0.24291599]
[1756975088208,0.55271781,110870.0,110860.0,0.42332371]
[1756975088469,1.11596519,110870.0,110860.0,0.42332371]
[1756975088684,1.11596519,110870.0,110860.0,0.42532371]
[1756975089288,1.11596519,110870.0,110860.0,0.42832371]
[1756975090344,1.11596519,110870.0,110860.0,0.27732371]
[1756975090525,1.11596519,110870.0,110860.0,0.24791599]
[1756975090727,1.26696519,110870.0,110860.0,0.005]
[1756975091662,1.11596519,110870.0,110860.0,0.005]
[1756975091862,1.26696519,110870.0,110860.0,0.005]
[1756975093584,0.55271781,110870.0,110860.0,0.005]
[1756975093827,1.26696519,110870.0,110860.0,0.18756772]
[1756975094993,1.26696519,110870.0,110860.0,0.00716]
[1756975095195,1.26696519,110870.0,110860.0,0.005]
[1756975096811,1.11596519,110870.0,110860.0,0.18540772]
[1756975097138,1.26696519,110870.0,110860.0,0.18540772]
[1756975097684,0.70371781,110870.0,110860.0,0.18540772]
[1756975097813,1.26696519,110870.0,110860.0,0.18540772]
[1756975098408,1.26696519,110870.0,110860.0,0.005]
[1756975110641,0.70371781,110870.0,110860.0,0.005]
[1756975110834,1.26696519,110870.0,110860.0,0.005]
[1756975111265,1.11596519,110870.0,110860.0,0.005]
[1756975111472,1.26696519,110870.0,110860.0,0.005]
[1756975115321,1.26696519,110870.0,110860.0,0.005]
[1756975118567,0.70371781,110870.0,110860.0,0.005]
[1756975118886,1.26696519,110870.0,110860.0,0.005]
[1756975121268,1.11596519,110870.0,110860.0,0.005]
[1756975121487,1.11279519,110870.0,110860.0,0.18741772]
[1756975121696,0.54750781,110870.0,110860.0,0.18741772]
[1756975121899,1.26175519,110870.0,110860.0,0.18741772]
[1756975122926,1.11075519,110870.0,110860.0,0.18741772]
[1756975123124,0.51811637,110870.0,110860.0,0.28257371]
[1756975123326,0.51811637,110870.0,110860.0,0.43357371]
[1756975123327,0.36711637,110870.0,110860.0,0.43357371]
[1756975126146,0.36711637,110870.0,110860.0,0.28257371]
[1756975126434,0.36711637,110870.0,110860.0,0.43357371]
[1756975126812,0.36711637,110870.0,110860.0,0.27933371]
[1756975127116,0.36711637,110870.0,110860.0,0.43357371]
[1756975127314,0.93036375,110870.0,110860.0,0.43357371]
[1756975127664,0.93036375,110870.0,110860.0,0.43033371]
[1756975128698,0.93036375,110870.0,110860.0,0.43029371]
[1756975129722,0.36711637,110870.0,110860.0,0.43029371]
[1756975129928,0.36711637,110870.0,110860.0,0.43353371]
[1756975133069,0.02711637,110870.0,110860.0,0.43353371]
[1756975133270,0.02711637,110870.0,110860.0,0.99710109]
[1756975133498,0.02711637,110870.0,110860.0,0.46096648]
[1756975133997,0.34004693,110880.0,110870.0,0.18039144]
[1756975134222,0.3671597,110880.0,110870.0,0.27431743]
[1756975134620,0.3671597,110880.0,110870.0,0.42559743]
[1756975135401,0.3671597,110880.0,110870.0,0.42759743]
[1756975135623,0.3671597,110880.0,110870.0,0.27631743]
[1756975135798,0.3671597,110880.0,110870.0,0.42759743]
[1756975136002,0.3671597,110880.0,110870.0,0.42959743]
[1756975139533,0.3671597,110880.0,110870.0,0.43283743]
[1756975139739,0.0271597,110880.0,110870.0,0.43271743]
[1756975139933,4.693e-05,110880.0,110870.0,0.43271743]
[1756975140940,4.693e-05,110880.0,110870.0,0.28155743]
[1756975141150,4.693e-05,110880.0,110870.0,0.43271743]
[1756975141580,4.693e-05,110880.0,110870.0,0.45982778]
[1756975142308,4.693e-05,110880.0,110870.0,0.52914778]
[1756975145878,4.693e-05,110880.0,110870.0,0.37478778]
[1756975146050,4.693e-05,110880.0,110870.0,0.52590778]
[1756975147466,0.42226835,110880.0,110870.0,0.52590778]
[1756975148015,4.693e-05,110880.0,110870.0,0.52590778]
[1756975148565,4.693e-05,110880.0,110870.0,0.52914778]
[1756975151655,4.693e-05,110880.0,110870.0,0.52590778]
[1756975152569,4.693e-05,110880.0,110870.0,0.37478778]
[1756975152810,4.693e-05,110880.0,110870.0,0.52578778]
[1756975153354,4.693e-05,110880.0,110870.0,0.52574778]
[1756975158654,4.693e-05,110880.0,110870.0,0.37478778]
[1756975158857,4.693e-05,110880.0,110870.0,0.52574778]
[1756975159061,0.42226835,110880.0,110870.0,0.52574778]
[1756975160053,4.693e-05,110880.0,110870.0,0.52574778]
[1756975163354,0.42226835,110880.0,110870.0,0.52574778]
[1756975164922,0.42429835,110880.0,110870.0,0.52574778]
[1756975165110,0.42731835,110880.0,110870.0,0.52574778]
[1756975174484,1.02991495,110880.0,110870.0,0.49658743]
[1756975174657,1.36991495,110880.0,110870.0,0.42722743]
[1756975175227,1.39702824,110880.0,110870.0,0.42722743]
[1756975175614,0.36919022,110880.0,110870.0,0.42938743]
[1756975175836,0.78938164,110880.0,110870.0,0.42938743]
[1756975176059,0.79141164,110880.0,110870.0,0.42938743]
[1756975176257,0.79443164,110880.0,110870.0,0.42938743]
[1756975176481,0.79443164,110880.0,110870.0,0.42722743]
[1756975183955,1.39702824,110880.0,110870.0,0.42722743]
[1756975185578,1.39702824,110880.0,110870.0,0.27630743]
[1756975185773,1.39702824,110880.0,110870.0,0.42722743]
[1756975186158,1.39702824,110880.0,110870.0,0.27630743]
[1756975186496,1.39702824,110880.0,110870.0,0.42722743]
[1756975186640,0.5525854,110880.0,110870.0,0.42722743]
[1756975186841,1.39702824,110880.0,110870.0,0.42722743]
[1756975188166,1.39702824,110880.0,110870.0,0.27630743]
[1756975188383,1.39702824,110880.0,110870.0,0.42722743]
[1756975198651,1.39702824,110880.0,110870.0,0.09591599]
[1756975198852,1.39702824,110880.0,110870.0,0.24683599]
[1756975200258,1.39702824,110880.0,110870.0,0.42722743]
[1756975200822,1.39702824,110880.0,110870.0,0.27630743]
[1756975201029,1.39702824,110880.0,110870.0,0.42722743]
[1756975201235,1.39702824,110880.0,110870.0,0.09591599]